lending/lending_fUSD_20250808
["ID","MTS","AMOUNT","RATE_DAILY","PERIOD"]
[377910413,1754613071484,-1880.9,0.00019726,2]
[377910414,1754613071493,-1651.16,0.00019726,2]
[377910415,1754613071502,-400.0,0.00019726,2]
[377910416,1754613071512,-1525.3,0.00019726,2]
[377910417,1754613071522,-707.51,0.00019726,2]
[377910418,1754613071531,-480.51,0.00019726,2]
[377910419,1754613071540,-400.0,0.00019726,2]
[377910420,1754613071549,-400.0,0.00019726,2]
[377910421,1754613071558,-492.44,0.00019726,2]
[377910422,1754613071568,-1793.18,0.00019726,2]
[377910423,1754613071577,-228.83939378,0.00019726,2]
[377910424,1754613071588,-874.37,0.00019726,2]
[377910425,1754613071599,-400.0,0.00019726,2]
[377910426,1754613071609,-400.0,0.00019726,2]
[377910427,1754613071618,-634.13,0.00019726,2]
[377910428,1754613071627,-223.44716675,0.00019726,2]
[377910429,1754613071637,-555.1,0.00019736,2]
[377910430,1754613071647,-700.0,0.0001977,2]
[377910431,1754613071656,-700.0,0.0001977,2]
[377910432,1754613071665,-500.0,0.0001977,2]
[377910433,1754613071675,-601.03,0.0001977,2]
[377910434,1754613071684,-500.0,0.0001977,2]
[377910435,1754613071694,-400.0,0.0001977,2]
[377910436,1754613071703,-500.0,0.00019773,2]
[377910437,1754613071713,-500.0,0.00019773,2]
[377910438,1754613071722,-500.0,0.00019773,2]
[377910439,1754613071732,-500.0,0.00019773,2]
[377910440,1754613071741,-37406.63509047,0.000198,2]
[377910441,1754613071751,-196.19,0.000198,2]
[377910442,1754613071760,-196.19,0.000198,2]
[377910443,1754613071770,-196.19,0.000198,2]
[377910444,1754613071780,-196.19,0.000198,2]
[377910445,1754613071790,-196.19,0.000198,2]
[377910446,1754613071800,-196.19,0.000198,2]
[377910447,1754613071809,-196.19,0.000198,2]
[377910448,1754613071819,-196.19,0.000198,2]
[377910449,1754613071829,-196.19,0.000198,2]
[377910450,1754613071843,-196.19,0.000198,2]
[377910451,1754613071854,-196.19,0.000198,2]
[377910452,1754613071864,-196.19,0.000198,2]
[377910453,1754613071875,-196.19,0.000198,2]
[377910454,1754613071885,-196.19,0.000198,2]
[377910455,1754613071895,-196.19,0.000198,2]
[377910456,1754613071905,-196.19,0.000198,2]
[377910457,1754613071917,-196.19,0.000198,2]
[377910458,1754613071928,-196.19,0.000198,2]
[377910459,1754613071938,-196.19,0.000198,2]
[377910460,1754613071948,-196.19,0.000198,2]
[377910461,1754613071958,-196.19,0.000198,2]
[377910462,1754613071968,-196.19,0.000198,2]
[377910463,1754613071978,-196.19,0.000198,2]
[377910464,1754613071988,-196.19,0.000198,2]
[377910465,1754613071998,-196.19,0.000198,2]
[377910466,1754613072007,-196.19,0.000198,2]
[377910467,1754613072017,-196.19,0.000198,2]
[377910468,1754613072028,-196.19,0.000198,2]
[377910469,1754613072038,-196.19,0.000198,2]
[377910470,1754613072048,-196.19,0.000198,2]
[377910471,1754613072057,-196.19,0.000198,2]
[377910472,1754613072067,-196.19,0.000198,2]
[377910473,1754613072077,-196.19,0.000198,2]
[377910474,1754613072090,-196.19,0.000198,2]
[377910475,1754613072099,-196.19,0.000198,2]
[377910476,1754613072109,-196.19,0.000198,2]
[377910477,1754613072118,-196.19,0.000198,2]
[377910478,1754613072128,-196.19,0.000198,2]
[377910479,1754613072138,-196.19,0.000198,2]
[377910480,1754613072148,-196.19,0.000198,2]
[377910481,1754613072159,-196.19,0.000198,2]
[377910482,1754613072170,-196.19,0.000198,2]
[377910483,1754613072180,-196.19,0.000198,2]
[377910484,1754613072191,-196.19,0.000198,2]
[377910485,1754613072201,-196.19,0.000198,2]
[377910486,1754613072211,-196.19,0.000198,2]
[377910487,1754613072221,-196.19,0.000198,2]
[377910488,1754613072231,-196.19,0.000198,2]
[377910489,1754613072241,-196.19,0.000198,2]
[377910490,1754613072251,-196.19,0.000198,2]
[377910491,1754613072260,-196.19,0.000198,2]
[377910492,1754613072269,-196.19,0.000198,2]
[377910493,1754613072280,-196.19,0.000198,2]
[377910494,1754613072289,-196.19,0.000198,2]
[377910495,1754613072298,-196.19,0.000198,2]
[377910496,1754613072307,-196.19,0.000198,2]
[377910497,1754613072317,-196.19,0.000198,2]
[377910498,1754613072327,-196.19,0.000198,2]
[377910499,1754613072338,-196.19,0.000198,2]
[377910500,1754613072348,-196.19,0.000198,2]
[377910501,1754613072358,-196.19,0.000198,2]
[377910502,1754613072368,-196.19,0.000198,2]
[377910503,1754613072377,-196.19,0.000198,2]
[377910504,1754613072387,-196.19,0.000198,2]
[377910505,1754613072398,-196.19,0.000198,2]
[377910506,1754613072407,-196.19,0.000198,2]
[377910507,1754613072418,-196.19,0.000198,2]
[377910508,1754613072427,-196.19,0.000198,2]
[377910509,1754613072437,-196.19,0.000198,2]
[377910510,1754613072446,-196.19,0.000198,2]
[377910511,1754613072456,-196.19,0.000198,2]
[377910512,1754613072465,-196.19,0.000198,2]
[377910513,1754613072475,-196.19,0.000198,2]
[377910514,1754613072506,-196.19,0.000198,2]
[377910515,1754613072515,-196.19,0.000198,2]
[377910516,1754613072525,-196.19,0.000198,2]
[377910517,1754613072534,-196.19,0.000198,2]
[377910518,1754613072544,-196.19,0.000198,2]
[377910519,1754613072554,-196.19,0.000198,2]
[377910520,1754613072564,-196.19,0.000198,2]
[377910521,1754613072574,-196.19,0.000198,2]
[377910522,1754613072584,-196.19,0.000198,2]
[377910523,1754613072596,-196.19,0.000198,2]
[377910524,1754613072605,-196.19,0.000198,2]
[377910525,1754613072615,-196.19,0.000198,2]
[377910526,1754613072626,-196.19,0.000198,2]
[377910527,1754613072636,-196.19,0.000198,2]
[377910528,1754613072646,-196.19,0.000198,2]
[377910529,1754613072656,-196.19,0.000198,2]
[377910530,1754613072666,-196.19,0.000198,2]
[377910531,1754613072676,-196.19,0.000198,2]
[377910532,1754613072686,-196.19,0.000198,2]
[377910533,1754613072695,-196.19,0.000198,2]
[377910534,1754613072705,-196.19,0.000198,2]
[377910535,1754613072715,-196.19,0.000198,2]
[377910536,1754613072726,-196.19,0.000198,2]
[377910537,1754613072735,-196.19,0.000198,2]
[377910538,1754613072745,-196.19,0.000198,2]
[377910539,1754613072755,-196.19,0.000198,2]
[377910540,1754613072765,-1265.12,0.000198,2]
[377910541,1754613072775,-5000.0,0.000198,2]
[377910542,1754613072785,-555.1,0.00019826,2]
[377910543,1754613072794,-267.11,0.00019856,2]
[377910544,1754613072804,-203.0,0.0001986,2]
[377910545,1754613072813,-300.0,0.00019871,2]
[377910546,1754613072823,-150.0,0.00019871,2]
[377910547,1754613072833,-500.0,0.00019871,2]
[377910548,1754613072847,-2500.0,0.00019871,2]
[377910549,1754613072857,-1000.0,0.00019871,4]
[377910550,1754613072866,-250.0,0.00019871,2]
[377910551,1754613072877,-119294.03928229,0.0001988,2]
[377910552,1754613072887,-213.0,0.0001988,2]
[377910553,1754613072896,-226.2770895,0.00019884,2]
[377910554,1754613072906,-110152.5767454,0.000199,2]
[377910555,1754613072919,-555.1,0.00019915,2]
[377910556,1754613072928,-152.0,0.00019917,7]
[377910557,1754613072938,-2000.0,0.00019924,3]
[377910558,1754613072947,-300.0,0.00019925,2]
[377910559,1754613072956,-150.0,0.00019925,2]
[377910560,1754613072966,-500.0,0.00019925,2]
[377910561,1754613072975,-2500.0,0.00019925,2]
[377910562,1754613072984,-1000.0,0.00019925,4]
[377910563,1754613072994,-250.0,0.00019925,2]
[377910564,1754613073004,-150.0,0.00019925,2]
[377910565,1754613073014,-500.0,0.00019925,2]
[377910566,1754613073023,-2500.0,0.00019925,2]
[377910567,1754613073032,-1000.0,0.00019925,4]
[377910568,1754613073042,-250.0,0.00019925,2]
[377910569,1754613073051,-168.0,0.00019929,2]
[377910570,1754613073061,-934.12,0.00019933,2]
[377910571,1754613073070,-700.0,0.0001997,2]
[377910572,1754613073080,-700.0,0.0001997,2]
[377910573,1754613073091,-700.0,0.0001997,2]
[377910574,1754613073100,-776.6264179,0.0001997,2]
[377910575,1754613073110,-700.0,0.0001997,2]
[377910576,1754613073120,-400.0,0.0001997,2]
[377910577,1754613073130,-400.0,0.0001997,2]
[377910578,1754613073231,-400.0,0.00019986,2]
[377910579,1754613073275,-1770.72,0.00019986,2]
[377910580,1754613073285,-2033.74,0.00019986,2]
[377910581,1754613073294,-400.0,0.00019986,2]
[377910582,1754613073304,-1928.95,0.00019986,2]
[377910583,1754613073315,-1964.46,0.00019986,2]
[377910584,1754613073328,-1517.59,0.00019986,2]
[377910585,1754613073339,-2517.35,0.00019986,2]
[377910586,1754613073347,-3417.84,0.00019986,2]
[377910587,1754613073356,-45860.40500965,0.0002,2]
[377910588,1754613073366,-30405.0,0.0002,7]
[377910589,1754613073376,-9043.53643174,0.0002,2]
[377910590,1754613073386,-5997.26024437,0.0002,2]
[377910591,1754613073395,-1408.68528996,0.0002,2]
[377910592,1754613073405,-500.000001,0.0002,2]
[377910593,1754613073415,-500.0,0.0002,2]
[377910594,1754613073425,-315.7727682,0.0002,2]
[377910595,1754613073435,-390.0,0.0002,2]
[377910596,1754613073444,-6555.72132078,0.0002,2]
[377910597,1754613073454,-20473.57926931,0.0002,5]
[377910598,1754613073463,-150.0,0.0002,2]
[377910599,1754613073473,-2098.34715153,0.0002,2]
[377910600,1754613073483,-2000.0,0.0002,2]
[377910601,1754613073493,-57852.90912771,0.0002,30]
[377910602,1754613073502,-1561.88627217,0.0002,30]
[377910603,1754613073512,-2000.0,0.0002,2]
[377910604,1754613073521,-150.0,0.0002,3]
[377910605,1754613073536,-200.0,0.0002,5]
[377910606,1754613073546,-3000.0,0.0002,2]
[377910607,1754613073556,-3000.0,0.0002,2]
[377910608,1754613073566,-3000.0,0.0002,2]
[377910609,1754613073575,-577.95,0.0002,2]
[377910610,1754613073585,-1431.279595,0.0002,5]
[377910611,1754613073597,-23404.98243119,0.0002,2]
[377910612,1754613073607,-52243.41535597,0.0002,5]
[377910613,1754613073617,-8300.0,0.0002,4]
[377910614,1754613073627,-2000.0,0.0002,2]
[377910615,1754613073637,-400.0,0.0002,2]
[377910616,1754613073647,-400.0,0.0002,2]
[377910617,1754613073656,-400.0,0.0002,2]
[377910618,1754613073666,-413.9,0.0002,2]
[377910619,1754613073676,-400.0,0.0002,2]
[377910620,1754613073686,-491.72,0.0002,2]
[377910621,1754613073696,-400.0,0.0002,2]
[377910622,1754613073705,-1398.87,0.0002,2]
[377910623,1754613073715,-1031.25,0.0002,2]
[377910624,1754613073725,-400.0,0.0002,2]
[377910625,1754613073735,-400.0,0.0002,2]
[377910626,1754613073745,-565.33,0.0002,2]
[377910627,1754613073755,-400.0,0.0002,2]
[377910628,1754613073765,-400.0,0.0002,2]
[377910629,1754613073775,-400.0,0.0002,2]
[377910630,1754613073785,-984.93,0.0002,2]
[377910631,1754613073795,-1073.05,0.0002,2]
[377910632,1754613073805,-400.0,0.0002,2]
[377910633,1754613073815,-1178.77,0.0002,2]
[377910634,1754613073825,-828.34,0.0002,2]
[377910635,1754613073839,-400.0,0.0002,2]
[377910636,1754613073850,-400.0,0.0002,2]
[377910637,1754613073860,-400.0,0.0002,2]
[377910638,1754613073870,-400.0,0.0002,2]
[377910639,1754613073881,-400.0,0.0002,2]
[377910640,1754613073892,-400.0,0.0002,2]
[377910641,1754613073902,-400.0,0.0002,2]
[377910642,1754613073913,-400.0,0.0002,2]
[377910643,1754613073923,-400.0,0.0002,2]
[377910644,1754613073934,-812.28,0.0002,2]
[377910645,1754613073944,-927.28,0.0002,2]
[377910646,1754613073953,-400.0,0.0002,2]
[377910647,1754613073963,-400.0,0.0002,2]
[377910648,1754613073973,-400.0,0.0002,2]
[377910649,1754613073983,-953.96,0.0002,2]
[377910650,1754613073993,-400.0,0.0002,2]
[377910651,1754613074003,-861.71,0.0002,2]
[377910652,1754613074014,-400.0,0.0002,2]
[377910653,1754613074024,-580.75,0.0002,2]
[377910654,1754613074033,-802.6,0.0002,2]
[377910655,1754613074044,-400.0,0.0002,2]
[377910656,1754613074053,-400.0,0.0002,2]
[377910657,1754613074064,-400.0,0.0002,2]
[377910658,1754613074074,-400.0,0.0002,2]
[377910659,1754613074084,-400.0,0.0002,2]
[377910660,1754613074096,-571.8,0.0002,2]
[377910661,1754613074106,-400.0,0.0002,2]
[377910662,1754613074116,-226.89038345,0.0002,2]
[377910663,1754613074126,-1017.49,0.0002,2]
[377910664,1754613074136,-400.0,0.0002,2]
[377910665,1754613074146,-480.71,0.0002,2]
[377910666,1754613074155,-400.0,0.0002,2]
[377910667,1754613074165,-403.89,0.0002,2]
[377910668,1754613074175,-400.0,0.0002,2]
[377910669,1754613074186,-400.0,0.0002,2]
[377910670,1754613074196,-1379.73,0.0002,2]
[377910671,1754613074208,-400.0,0.0002,2]
[377910672,1754613074218,-1290.36,0.0002,2]
[377910673,1754613074228,-357.66504212,0.0002,2]
[377910674,1754613074239,-400.0,0.0002,2]
[377910675,1754613074250,-400.0,0.0002,2]
[377910676,1754613074261,-400.0,0.0002,2]
[377910677,1754613074271,-400.0,0.0002,2]
[377910678,1754613074282,-560.12,0.0002,2]
[377910679,1754613074292,-1326.45,0.0002,2]
[377910680,1754613074303,-1037.58,0.0002,2]
[377910681,1754613074312,-551.88,0.0002,2]
[377910682,1754613074323,-400.0,0.0002,2]
[377910683,1754613074332,-400.0,0.0002,2]
[377910684,1754613074344,-570.53,0.0002,2]
[377910685,1754613074354,-624.79,0.0002,2]
[377910686,1754613074364,-459.48,0.0002,2]
[377910687,1754613074374,-912.6,0.0002,2]
[377910688,1754613074384,-453.86,0.0002,2]
[377910689,1754613074393,-845.43,0.0002,2]
[377910690,1754613074403,-610.33,0.0002,2]
[377910691,1754613074414,-400.0,0.0002,2]
[377910692,1754613074423,-1543.29,0.0002,2]
[377910693,1754613074433,-802.15,0.0002,2]
[377910694,1754613074443,-405.06,0.0002,2]
[377910695,1754613074453,-400.0,0.0002,2]
[377910696,1754613074463,-400.0,0.0002,2]
[377910697,1754613074473,-1052.0,0.0002,2]
[377910698,1754613074483,-1340.86,0.0002,2]
[377910699,1754613074493,-400.0,0.0002,2]
[377910700,1754613074503,-950.22,0.0002,2]
[377910701,1754613074513,-903.46,0.0002,2]
[377910702,1754613074524,-1188.56,0.0002,2]
[377910703,1754613074535,-400.0,0.0002,2]
[377910704,1754613074545,-400.0,0.0002,2]
[377910705,1754613074556,-511.85,0.0002,2]
[377910706,1754613074566,-400.0,0.0002,2]
[377910707,1754613074576,-400.0,0.0002,2]
[377910708,1754613074586,-502.43,0.0002,2]
[377910709,1754613074599,-469.08,0.0002,2]
[377910710,1754613074611,-538.68,0.0002,2]
[377910711,1754613074623,-431.81,0.0002,2]
[377910712,1754613074634,-400.0,0.0002,2]
[377910713,1754613074643,-415.03,0.0002,2]
[377910714,1754613074653,-400.0,0.0002,2]
[377910715,1754613074663,-400.0,0.0002,2]
[377910716,1754613074673,-400.0,0.0002,2]
[377910717,1754613074682,-400.0,0.0002,2]
[377910718,1754613074692,-613.1,0.0002,2]
[377910719,1754613074702,-400.0,0.0002,2]
[377910720,1754613074712,-448.34,0.0002,2]
[377910721,1754613074722,-400.0,0.0002,2]
[377910722,1754613074732,-652.84,0.0002,2]
[377910723,1754613074742,-400.0,0.0002,2]
[377910724,1754613074753,-400.0,0.0002,2]
[377910725,1754613074762,-400.0,0.0002,2]
[377910726,1754613074772,-400.0,0.0002,2]
[377910727,1754613074782,-606.31,0.0002,2]
[377910728,1754613074793,-1054.59,0.0002,2]
[377910729,1754613074803,-468.72,0.0002,2]
[377910730,1754613074813,-400.0,0.0002,2]
[377910731,1754613074823,-400.0,0.0002,2]
[377910732,1754613074834,-560.03,0.0002,2]
[377910733,1754613074848,-400.0,0.0002,2]
[377910734,1754613074858,-346.30751195,0.0002,2]
[377910735,1754613074867,-1129.63,0.0002,2]
[377910736,1754613074877,-744.37,0.0002,2]
[377910737,1754613074887,-771.07,0.0002,2]
[377910738,1754613074897,-400.0,0.0002,2]
[377910739,1754613074907,-1372.41,0.0002,2]
[377910740,1754613074919,-830.78,0.0002,2]
[377910741,1754613074929,-643.55,0.0002,2]
[377910742,1754613074940,-1290.29,0.0002,2]
[377910743,1754613074950,-400.0,0.0002,2]
[377910744,1754613074959,-400.0,0.0002,2]
[377910745,1754613074969,-463.32,0.0002,2]
[377910746,1754613074979,-400.0,0.0002,2]
[377910747,1754613074990,-400.0,0.0002,2]
[377910748,1754613075000,-400.0,0.0002,2]
[377910749,1754613075011,-400.0,0.0002,2]
[377910750,1754613075021,-400.0,0.0002,2]
[377910751,1754613075031,-400.0,0.0002,2]
[377910752,1754613075042,-792.51,0.0002,2]
[377910753,1754613075052,-400.0,0.0002,2]
[377910754,1754613075062,-400.0,0.0002,2]
[377910755,1754613075073,-263.12637533,0.0002,2]
[377910756,1754613075082,-720.13,0.0002,2]
[377910757,1754613075095,-526.14,0.0002,2]
[377910758,1754613075105,-690.34,0.0002,2]
[377910759,1754613075115,-767.24,0.0002,2]
[377910760,1754613075125,-784.03,0.0002,2]
[377910761,1754613075135,-619.45,0.0002,2]
[377910762,1754613075144,-592.46,0.0002,2]
[377910763,1754613075154,-838.34,0.0002,2]
[377910764,1754613075164,-400.0,0.0002,2]
[377910765,1754613075173,-400.0,0.0002,2]
[377910766,1754613075183,-430.58,0.0002,2]
[377910767,1754613075193,-400.0,0.0002,2]
[377910768,1754613075203,-400.0,0.0002,2]
[377910769,1754613075214,-400.0,0.0002,2]
[377910770,1754613075223,-400.0,0.0002,2]
[377910771,1754613075233,-400.0,0.0002,2]
[377910772,1754613075243,-400.0,0.0002,2]
[377910773,1754613075252,-400.0,0.0002,2]
[377910774,1754613075261,-400.0,0.0002,2]
[377910775,1754613075272,-400.0,0.0002,2]
[377910776,1754613075282,-887.56,0.0002,2]
[377910777,1754613075292,-400.0,0.0002,2]
[377910778,1754613075302,-1398.35,0.0002,2]
[377910779,1754613075312,-1086.27,0.0002,2]
[377910780,1754613075321,-1137.31,0.0002,2]
[377910781,1754613075331,-400.0,0.0002,2]
[377910782,1754613075344,-488.07,0.0002,2]
[377910783,1754613075354,-400.0,0.0002,2]
[377910784,1754613075364,-433.15,0.0002,2]
[377910785,1754613075375,-969.77,0.0002,2]
[377910786,1754613075385,-644.96,0.0002,2]
[377910787,1754613075395,-711.54,0.0002,2]
[377910788,1754613075404,-745.61,0.0002,2]
[377910789,1754613075414,-1326.15,0.0002,2]
[377910790,1754613075424,-615.2,0.0002,2]
[377910791,1754613075433,-580.71,0.0002,2]
[377910792,1754613075443,-400.0,0.0002,2]
[377910793,1754613075454,-400.0,0.0002,2]
[377910794,1754613075463,-777.93,0.0002,2]
[377910795,1754613075792,-400.0,0.0002,2]
[377910796,1754613075815,-533.67,0.0002,2]
[377910797,1754613075825,-400.0,0.0002,2]
[377910798,1754613075843,-1146.04,0.0002,2]
[377910799,1754613075854,-400.0,0.0002,2]
[377910800,1754613075864,-1764.53,0.0002,2]
[377910801,1754613075875,-400.0,0.0002,2]
[377910802,1754613075886,-400.0,0.0002,2]
[377910803,1754613075897,-678.35,0.0002,2]
[377910804,1754613075908,-595.92,0.0002,2]
[377910805,1754613075919,-1128.98,0.0002,2]
[377910806,1754613075929,-400.0,0.0002,2]
[377910807,1754613075939,-1058.02,0.0002,2]
[377910808,1754613075949,-400.0,0.0002,2]
[377910809,1754613075959,-467.91,0.0002,2]
[377910810,1754613075969,-460.25,0.0002,2]
[377910811,1754613075979,-498.62,0.0002,2]
[377910812,1754613075988,-684.85,0.0002,2]
[377910813,1754613075998,-834.5,0.0002,2]
[377910814,1754613076009,-400.0,0.0002,2]
[377910815,1754613076019,-1822.08,0.0002,2]
[377910816,1754613076029,-519.11,0.0002,2]
[377910817,1754613076039,-400.0,0.0002,2]
[377910818,1754613076050,-283.46870409,0.0002,2]
[377910819,1754613076060,-400.0,0.0002,2]
[377910820,1754613076070,-400.0,0.0002,2]
[377910821,1754613076080,-400.0,0.0002,2]
[377910822,1754613076093,-400.0,0.0002,2]
[377910823,1754613076103,-400.0,0.0002,2]
[377910824,1754613076113,-431.49,0.0002,2]
[377910825,1754613076122,-400.0,0.0002,2]
[377910826,1754613076132,-756.51,0.0002,2]
[377910827,1754613076142,-474.3,0.0002,2]
[377910828,1754613076151,-400.0,0.0002,2]
[377910829,1754613076161,-753.02,0.0002,2]
[377910830,1754613076171,-400.0,0.0002,2]
[377910831,1754613076181,-400.0,0.0002,2]
[377910832,1754613076191,-488.75,0.0002,2]
[377910833,1754613076202,-530.37,0.0002,2]
[377910834,1754613076212,-1312.14,0.0002,2]
[377910835,1754613076223,-400.0,0.0002,2]
[377910836,1754613076234,-664.1,0.0002,2]
[377910837,1754613076244,-723.03,0.0002,2]
[377910838,1754613076254,-481.93,0.0002,2]
[377910839,1754613076264,-400.0,0.0002,2]
[377910840,1754613076275,-400.0,0.0002,2]
[377910841,1754613076285,-753.14,0.0002,2]
[377910842,1754613076296,-1362.2,0.0002,2]
[377910843,1754613076306,-681.29,0.0002,2]
[377910844,1754613076315,-400.0,0.0002,2]
[377910845,1754613076326,-1202.92,0.0002,2]
[377910846,1754613076338,-400.0,0.0002,2]
[377910847,1754613076350,-400.0,0.0002,2]
[377910848,1754613076359,-400.0,0.0002,2]
[377910849,1754613076369,-908.09,0.0002,2]
[377910850,1754613076378,-1356.82,0.0002,2]
[377910851,1754613076388,-642.93,0.0002,2]
[377910852,1754613076398,-400.0,0.0002,2]
[377910853,1754613076408,-400.0,0.0002,2]
[377910854,1754613076419,-558.14,0.0002,2]
[377910855,1754613076428,-400.0,0.0002,2]
[377910856,1754613076438,-473.3,0.0002,2]
[377910857,1754613076448,-600.87,0.0002,2]
[377910858,1754613076458,-857.38,0.0002,2]
[377910859,1754613076469,-1113.28,0.0002,2]
[377910860,1754613076479,-400.0,0.0002,2]
[377910861,1754613076489,-1063.89,0.0002,2]
[377910862,1754613076499,-766.74,0.0002,2]
[377910863,1754613076509,-702.23,0.0002,2]
[377910864,1754613076520,-400.0,0.0002,2]
[377910865,1754613076530,-593.88,0.0002,2]
[377910866,1754613076541,-697.81,0.0002,2]
[377910867,1754613076550,-1070.57,0.0002,2]
[377910868,1754613076560,-1013.85,0.0002,2]
[377910869,1754613076570,-565.06,0.0002,2]
[377910870,1754613076581,-835.59,0.0002,2]
[377910871,1754613076594,-400.0,0.0002,2]
[377910872,1754613076604,-787.56,0.0002,2]
[377910873,1754613076615,-805.74,0.0002,2]
[377910874,1754613076625,-714.37,0.0002,2]
[377910875,1754613076635,-400.0,0.0002,2]
[377910876,1754613076645,-400.0,0.0002,2]
[377910877,1754613076654,-400.0,0.0002,2]
[377910878,1754613076665,-446.94,0.0002,2]
[377910879,1754613076676,-518.84,0.0002,2]
[377910880,1754613076686,-634.1,0.0002,2]
[377910881,1754613076696,-997.03,0.0002,2]
[377910882,1754613076706,-668.96,0.0002,2]
[377910883,1754613076715,-400.0,0.0002,2]
[377910884,1754613076725,-1310.15,0.0002,2]
[377910885,1754613076735,-823.13,0.0002,2]
[377910886,1754613076745,-400.0,0.0002,2]
[377910887,1754613076757,-602.12,0.0002,2]
[377910888,1754613076767,-542.82,0.0002,2]
[377910889,1754613076777,-539.85,0.0002,2]
[377910890,1754613076788,-1520.38,0.0002,2]
[377910891,1754613076799,-677.81,0.0002,2]
[377910892,1754613076809,-400.0,0.0002,2]
[377910893,1754613076819,-1166.4,0.0002,2]
[377910894,1754613076831,-400.0,0.0002,2]
[377910895,1754613076846,-400.0,0.0002,2]
[377910896,1754613076856,-400.0,0.0002,2]
[377910897,1754613076866,-440.74,0.0002,2]
[377910898,1754613076876,-400.0,0.0002,2]
[377910899,1754613076888,-400.0,0.0002,2]
[377910900,1754613076897,-1322.15,0.0002,2]
[377910901,1754613076908,-349.43875425,0.0002,2]
[377910902,1754613076919,-400.0,0.0002,2]
[377910903,1754613076928,-400.0,0.0002,2]
[377910904,1754613076939,-400.0,0.0002,2]
[377910905,1754613076949,-400.0,0.0002,2]
[377910906,1754613076959,-439.53,0.0002,2]
[377910907,1754613076969,-1225.17,0.0002,2]
[377910908,1754613076979,-400.0,0.0002,2]
[377910909,1754613076989,-729.31,0.0002,2]
[377910910,1754613076999,-1460.14,0.0002,2]
[377910911,1754613077008,-455.12,0.0002,2]
[377910912,1754613077018,-400.0,0.0002,2]